bitfinex/quotes_BTCUSD_20251114
["timestamp","ask_amount","ask_price","bid_price","bid_amount"]
[1763120981024,0.52818189,96111.0,96110.0,0.00013671]
[1763120981389,0.52918189,96111.0,96110.0,0.00013671]
[1763120982305,0.43376874,96111.0,96110.0,0.00013671]
[1763120983088,0.43276874,96111.0,96110.0,0.00013671]
[1763120983641,0.43376874,96111.0,96110.0,0.00013671]
[1763120984282,0.43376874,96111.0,96070.0,4e-05]
[1763120984283,0.04341874,96099.0,96070.0,4e-05]
[1763120984524,0.04341874,96099.0,96070.0,0.00049572]
[1763120984525,0.24169936,96071.0,96070.0,0.00049572]
[1763120985176,0.03352,96071.0,96070.0,0.00049572]
[1763120987133,0.03452,96071.0,96070.0,0.00049572]
[1763120987559,0.03352,96071.0,96070.0,0.00049572]
[1763120987770,0.20817365,96074.0,96070.0,0.20867639]
[1763120987997,0.20817306,96075.0,96070.0,0.20867639]
[1763120987998,0.20817306,96075.0,96071.0,0.20817894]
[1763120988250,0.20817306,96075.0,96070.0,0.00049572]
[1763120988251,0.04632,96081.0,96070.0,0.00049572]
[1763120988479,0.20817936,96071.0,96070.0,0.37936868]
[1763120988703,0.20817741,96072.0,96070.0,0.00049572]
[1763120988936,0.20815986,96080.0,96076.0,0.20816781]
[1763120989157,0.20816268,96079.0,96076.0,0.20816781]
[1763120989351,0.20815986,96080.0,96077.0,0.20816573]
[1763120989605,0.04632,96081.0,96076.0,0.20816781]
[1763120989836,0.20816203,96079.0,96074.0,0.20817208]
[1763120990078,0.25447954,96081.0,96070.0,0.37936868]
[1763120990294,0.20816066,96080.0,96076.0,0.208168]
[1763120990535,0.25447954,96081.0,96076.0,0.208168]
[1763120990742,0.20816099,96080.0,96074.0,0.20817198]
[1763120990948,0.04632,96091.0,96072.0,0.09294592]
[1763120991159,0.323,96094.0,96084.0,0.20815048]
[1763120991369,0.323,96094.0,96079.0,0.00361]
[1763120991370,0.09466,96107.0,96087.0,0.09294592]
[1763120991581,0.20811342,96102.0,96094.0,0.20812953]
[1763120991788,0.04632,96108.0,96080.0,0.01401799]
[1763120991789,0.04632,96101.0,96080.0,0.01401799]
[1763120992011,0.04632,96101.0,96090.0,0.47181888]
[1763120992210,0.20812976,96094.0,96090.0,0.47181888]
[1763120992415,0.04632,96101.0,96090.0,0.30108405]
[1763120992630,0.20813233,96093.0,96090.0,0.09294592]
[1763120992806,0.20813233,96093.0,96085.0,0.20814795]
[1763120993068,0.20813233,96093.0,96089.0,0.09294592]
[1763120993293,0.20812503,96097.0,96092.0,0.20813304]
[1763120993496,0.04632,96108.0,96094.0,0.00361]
[1763120993671,0.20812424,96097.0,96094.0,0.00361]
[1763120994090,0.20814686,96086.0,96085.0,0.002]
[1763120994343,0.208145,96087.0,96085.0,0.002]
[1763120994564,0.208145,96087.0,96085.0,0.001]
[1763120995194,0.208145,96087.0,96074.0,0.20817214]
[1763120995406,0.20815828,96081.0,96078.0,0.2081632]
[1763120995837,0.20816097,96080.0,96076.0,0.20816693]
[1763120996069,0.20816616,96078.0,96071.0,0.09294592]
[1763120996276,0.20815899,96081.0,96073.0,0.20817503]
[1763120996485,0.04632,96095.0,96071.0,0.09294592]
[1763120996704,0.04632,96083.0,96074.0,0.20817144]
[1763120997078,0.04632,96083.0,96078.0,0.001]
[1763120997212,0.20817205,96075.0,96070.0,0.00049572]
[1763120997472,0.04632,96083.0,96071.0,0.09294592]
[1763120997698,0.04632,96083.0,96074.0,0.20817252]
[1763120997699,0.20816678,96077.0,96074.0,0.20817252]
[1763120997903,0.09466,96104.0,96082.0,0.00361]
[1763120998115,0.09466,96104.0,96090.0,0.20813725]
[1763120998323,0.20813636,96091.0,96089.0,0.20814036]
[1763120998523,0.20812296,96098.0,96095.0,0.20812733]
[1763120998730,0.20812296,96098.0,96093.0,0.20813101]
[1763120998731,0.20812358,96097.0,96093.0,0.20813101]
[1763120998942,0.20812114,96098.0,96095.0,0.2081262]
[1763120999350,0.20812114,96098.0,96090.0,0.09294592]
[1763120999557,0.20813603,96091.0,96090.0,0.09294592]
[1763121000004,0.09466,96106.0,96080.0,0.55653719]
[1763121000210,0.09466,96106.0,96086.0,0.09294592]
[1763121000414,0.20811463,96101.0,96097.0,0.20812093]
[1763121000614,0.20811463,96101.0,96086.0,0.09294592]
[1763121000615,0.04632,96108.0,96090.0,0.55653719]
[1763121000829,0.04771,96114.0,96098.0,0.55653719]
[1763121001106,0.04632,96136.0,96087.0,0.00361]
[1763121001107,0.04632,96136.0,96118.0,0.00361]
[1763121001328,0.20805922,96127.0,96119.0,0.00361]
[1763121001551,0.20806114,96126.0,96122.0,0.20806785]
[1763121001759,0.20806114,96126.0,96120.0,0.55653719]
[1763121001760,0.04771,96137.0,96125.0,0.20806116]
[1763121002001,0.04771,96137.0,96123.0,0.20806487]
[1763121002002,0.20805356,96130.0,96126.0,0.20805933]
[1763121002223,0.04771,96137.0,96120.0,0.55653719]
[1763121002450,0.00013646,96130.0,96104.0,0.323]
[1763121002675,0.2080754,96119.0,96118.0,0.09394592]
[1763121002891,0.2080754,96119.0,96105.0,0.20810512]
[1763121002892,0.20809024,96113.0,96105.0,0.20810512]
[1763121003099,0.26989757,96119.0,96102.0,0.2081101]
[1763121003344,0.20809477,96111.0,96106.0,0.20810234]
[1763121003544,0.20806774,96123.0,96116.0,0.09294592]
[1763121003777,0.2080697,96122.0,96118.0,0.20807686]
[1763121003982,0.20805723,96128.0,96125.0,0.20806143]
[1763121004191,0.20805459,96129.0,96125.0,0.20806143]
[1763121004374,0.20805731,96128.0,96123.0,0.20806521]
[1763121004641,0.20805693,96128.0,96124.0,0.20806296]
[1763121004861,0.00013646,96130.0,96126.0,0.20805976]
[1763121005079,2.65387767,96177.0,96126.0,0.20805916]
[1763121005080,0.20804294,96134.0,96126.0,0.20805916]
[1763121005292,0.57693543,96170.0,96116.0,0.30102565]
[1763121005293,0.20804045,96136.0,96131.0,0.20804794]
[1763121005509,0.20806107,96126.0,96121.0,0.20807107]
[1763121005718,0.323,96151.0,96116.0,0.09294592]
[1763121005932,0.20804477,96134.0,96130.0,0.20805003]
[1763121006112,0.20804178,96135.0,96132.0,0.20804604]
[1763121006377,0.20801048,96149.0,96120.0,0.7646061]
[1763121006589,0.20804335,96134.0,96130.0,0.55653719]
[1763121006796,0.04341874,96149.0,96120.0,0.55653719]
[1763121006998,0.20805331,96130.0,96120.0,0.55653719]
[1763121007151,0.20804804,96132.0,96127.0,0.2080567]
[1763121007361,0.001,96134.0,96128.0,0.20805408]
[1763121007623,0.001,96134.0,96132.0,0.30099258]
[1763121007759,0.20803344,96139.0,96132.0,0.20804668]
[1763121007959,0.20804328,96134.0,96129.0,0.20805178]
[1763121008202,0.20804551,96133.0,96129.0,0.20805178]
[1763121008432,0.20805195,96130.0,96127.0,0.20805668]
[1763121008633,0.20806,96127.0,96122.0,0.20806891]
[1763121008850,0.2080656,96124.0,96116.0,0.09308238]
[1763121009095,0.2080656,96124.0,96119.0,0.20807328]
[1763121009306,0.20807816,96118.0,96116.0,0.09308238]
[1763121009511,0.20807816,96118.0,96116.0,0.00013646]
[1763121009512,0.06217,96117.0,96116.0,0.00013646]
[1763121009712,0.10558874,96117.0,96116.0,0.00013646]
[1763121010682,0.20807816,96118.0,96116.0,0.00013646]
[1763121012045,0.20907816,96118.0,96116.0,0.00013646]
[1763121012891,0.21007816,96118.0,96116.0,0.00013646]
[1763121013097,0.06217,96117.0,96116.0,0.00013646]
[1763121013280,0.21007816,96118.0,96116.0,0.00013646]
[1763121013483,0.002,96118.0,96116.0,0.00013646]
[1763121013724,0.20807973,96117.0,96116.0,0.00013646]
[1763121014284,0.20907973,96117.0,96116.0,0.00013646]
[1763121015174,0.21007973,96117.0,96116.0,0.00013646]
[1763121016259,0.002,96117.0,96116.0,0.00013646]
[1763121016687,0.002,96117.0,96116.0,0.09308238]
[1763121017116,0.001,96117.0,96116.0,0.00013646]
[1763121017315,0.20807818,96118.0,96116.0,0.00013646]
[1763121017737,0.06217,96117.0,96116.0,0.00013646]
[1763121020390,0.06317,96117.0,96116.0,0.00013646]
[1763121020601,0.11203,96117.0,96116.0,0.00013646]
[1763121021013,0.11303,96117.0,96116.0,0.00013646]
[1763121021440,0.15644874,96117.0,96116.0,0.00013646]
[1763121021659,0.15644874,96117.0,96086.0,0.20814618]
[1763121021660,0.20814036,96089.0,96088.0,0.09058238]
[1763121022343,0.04886,96097.0,96060.0,0.0004]
[1763121022344,0.14642,96097.0,96063.0,0.00361]
[1763121022556,0.06217,96089.0,96076.0,0.09294592]
[1763121022843,0.20815028,96085.0,96076.0,0.09294592]
[1763121023066,0.20815028,96085.0,96077.0,0.20816539]
[1763121023276,0.20815028,96085.0,96081.0,0.20815723]
[1763121023480,0.20815689,96082.0,96076.0,0.09294592]
[1763121023686,0.20817417,96074.0,96070.0,0.20867698]
[1763121023893,0.20817411,96074.0,96071.0,0.09294592]
[1763121024093,0.20817679,96073.0,96071.0,0.09294592]
[1763121024299,0.20815746,96082.0,96071.0,0.09294592]
[1763121024523,0.42659785,96110.0,96078.0,0.20816307]
[1763121024524,0.20814716,96086.0,96078.0,0.20816307]
[1763121024725,0.20813958,96090.0,96081.0,0.20815663]
[1763121024925,0.09756,96098.0,96079.0,0.20816041]
[1763121025046,0.20815048,96085.0,96080.0,0.20815916]
[1763121025253,0.20815216,96084.0,96079.0,0.20816104]
[1763121025455,0.20815216,96084.0,96080.0,0.20815883]
[1763121025657,0.20815216,96084.0,96079.0,0.20816083]
[1763121025858,0.20814793,96086.0,96081.0,0.20815639]
[1763121026104,0.20814793,96086.0,96081.0,0.20815682]
[1763121026335,0.20813961,96090.0,96085.0,0.20814766]
[1763121026509,0.20814706,96086.0,96080.0,0.55653719]
[1763121026684,0.20810754,96105.0,96090.0,0.20813656]
[1763121026865,0.20811877,96099.0,96091.0,0.20813457]
[1763121027071,0.20811577,96101.0,96094.0,0.20812863]
[1763121027350,0.20811741,96100.0,96094.0,0.20812863]
[1763121027552,0.20811592,96101.0,96097.0,0.20812221]
[1763121027926,0.20811726,96100.0,96095.0,0.20812737]
[1763121028291,0.20811935,96099.0,96095.0,0.20812737]
[1763121028754,0.04886,96117.0,96098.0,0.20811933]
[1763121028955,0.001,96101.0,96099.0,0.20811814]
[1763121029367,0.20812149,96098.0,96095.0,0.20812633]
[1763121029582,0.20812087,96098.0,96078.0,0.2081577]
[1763121029786,0.20812087,96098.0,96071.0,0.09294592]
[1763121029787,0.20817035,96076.0,96071.0,0.09294592]
[1763121029995,0.04886,96081.0,96071.0,0.09294592]
[1763121030200,0.20812967,96094.0,96076.0,0.20816776]
[1763121030404,0.323,96114.0,96078.0,0.20816307]
[1763121030608,0.3056852,96097.0,96071.0,0.09340164]
[1763121030811,0.2081252,96096.0,96071.0,0.09340164]
[1763121031024,0.01040366,96120.0,96086.0,0.09294592]
[1763121031025,0.20809994,96108.0,96086.0,0.09294592]
[1763121031232,0.20809509,96110.0,96090.0,0.5669441]
[1763121031437,0.20809098,96112.0,96106.0,0.20810259]
[1763121031624,0.2080876,96114.0,96090.0,0.5669441]
[1763121031865,0.20809145,96112.0,96109.0,0.20809671]
[1763121032082,0.2080819,96116.0,96108.0,0.20809828]
[1763121032290,0.2080819,96116.0,96101.0,0.09294592]
[1763121032291,0.2080901,96113.0,96101.0,0.09294592]
[1763121032503,0.20809056,96112.0,96101.0,0.09294592]
[1763121032715,0.00013653,96113.0,96111.0,0.2080926]
[1763121033118,0.20810299,96107.0,96101.0,0.09294592]
[1763121033323,0.00013653,96113.0,96101.0,0.09294592]
[1763121033536,0.00013653,96113.0,96111.0,0.20809224]
[1763121034556,0.20822618,96113.0,96109.0,0.20809666]
[1763121034758,0.00013653,96113.0,96110.0,0.20809459]
[1763121035155,0.00013653,96113.0,96111.0,0.20909198]
[1763121035393,0.00013653,96113.0,96111.0,0.001]
[1763121035600,0.20822661,96113.0,96111.0,0.001]
[1763121036382,0.20822661,96113.0,96102.0,0.09294592]
[1763121036383,0.20810637,96105.0,96102.0,0.09294592]
[1763121036529,0.20810251,96107.0,96102.0,0.30105658]
[1763121036730,0.208104,96106.0,96102.0,0.30105658]
[1763121036932,0.20810421,96106.0,96102.0,0.30105658]
[1763121037360,0.00013653,96113.0,96102.0,0.30105658]
[1763121037361,0.00013653,96113.0,96102.0,0.09294592]
[1763121037561,0.20809056,96112.0,96106.0,0.20810304]
[1763121037804,0.20809202,96112.0,96105.0,0.2081055]
[1763121037986,0.20822653,96113.0,96106.0,0.20810197]
[1763121038188,0.2082255,96113.0,96106.0,0.20810197]
[1763121038397,0.20809314,96111.0,96104.0,0.20810693]
[1763121038622,0.20809711,96109.0,96102.0,0.30105708]
[1763121039158,0.00013653,96113.0,96102.0,0.09294592]
[1763121039385,0.00013653,96113.0,96107.0,0.2081008]
[1763121039593,0.00013653,96113.0,96108.0,0.20809763]
[1763121039800,0.20809092,96112.0,96109.0,0.20809689]
[1763121040431,0.20822508,96113.0,96110.0,0.20809423]
[1763121040858,0.00013653,96113.0,96111.0,0.2080926]
[1763121041077,0.00013653,96113.0,96112.0,0.20809056]
[1763121041553,0.00013653,96113.0,96107.0,0.20809986]
[1763121041554,0.00013653,96113.0,96102.0,0.001]
[1763121041555,0.20811004,96103.0,96102.0,0.001]
[1763121041766,0.20813461,96092.0,96087.0,0.09294592]
[1763121041996,0.01040474,96110.0,96109.0,0.001]
[1763121041997,0.21850179,96110.0,96109.0,0.001]
[1763121042212,0.20809705,96110.0,96109.0,0.001]
[1763121042869,0.00013653,96113.0,96109.0,0.001]
[1763121043078,0.20810587,96105.0,96102.0,0.20811015]
[1763121043291,0.20809959,96108.0,96105.0,0.20810455]
[1763121043504,0.20809705,96111.0,96107.0,0.20809943]
[1763121043724,0.20809056,96112.0,96105.0,0.20810455]
[1763121043923,0.20810222,96107.0,96102.0,0.09294592]
[1763121044335,0.00013653,96113.0,96103.0,0.20811004]
[1763121044545,0.00013653,96113.0,96104.0,0.2081078]
[1763121044751,0.20809861,96109.0,96105.0,0.20810526]
[1763121044954,0.00013653,96113.0,96112.0,0.20809056]
[1763121045406,0.00013653,96113.0,96111.0,0.20809236]
[1763121045619,0.00013653,96113.0,96112.0,0.20809056]
[1763121047075,0.00013653,96113.0,96112.0,0.20909056]
[1763121047281,0.00013653,96113.0,96112.0,0.20809056]
[1763121047720,0.00013653,96113.0,96112.0,0.20909056]
[1763121048134,0.00013653,96113.0,96112.0,0.001]
[1763121048342,0.00013653,96113.0,96102.0,0.09294592]
[1763121048343,0.2080931,96111.0,96107.0,0.20810106]
[1763121048612,0.00013653,96113.0,96111.0,0.20809099]
[1763121048867,0.20809056,96112.0,96102.0,0.09294592]
[1763121049071,0.00013653,96113.0,96102.0,0.09294592]
[1763121049279,0.00013653,96113.0,96102.0,0.30105653]
[1763121049280,0.20809801,96109.0,96102.0,0.30105653]
[1763121049692,0.20809922,96108.0,96102.0,0.30105653]
[1763121049900,0.00013653,96113.0,96102.0,0.09294592]
[1763121050135,0.00013653,96113.0,96111.0,0.20809181]
[1763121050341,0.00013653,96113.0,96102.0,0.09294592]
[1763121050695,0.20809489,96110.0,96102.0,0.09294592]
[1763121050898,0.20809489,96110.0,96104.0,0.20810715]
[1763121051102,0.20810626,96105.0,96102.0,0.09294592]
[1763121051302,0.00013653,96113.0,96102.0,0.30105596]
[1763121051506,0.20809805,96109.0,96105.0,0.20810516]
[1763121051875,0.20822526,96113.0,96102.0,0.09294592]
[1763121052099,0.00013653,96113.0,96112.0,0.20809056]
[1763121052296,0.00013653,96113.0,96102.0,0.09294592]
[1763121052503,0.20810725,96105.0,96102.0,0.09394592]
[1763121052798,0.20809705,96109.0,96102.0,0.09294592]
[1763121052994,0.20809312,96111.0,96106.0,0.20810339]
[1763121053202,0.20809804,96109.0,96102.0,0.09394592]
[1763121053408,0.20810844,96104.0,96102.0,0.09294592]
[1763121053726,0.20810569,96106.0,96102.0,0.09294592]
[1763121053727,0.20811004,96103.0,96102.0,0.09294592]
[1763121054165,0.20812172,96098.0,96091.0,0.20813529]
[1763121054368,0.20812172,96098.0,96092.0,0.323]
[1763121054692,0.20811654,96100.0,96096.0,0.20812478]
[1763121054898,0.20811654,96100.0,96097.0,0.2081224]
[1763121055127,0.20811403,96102.0,96098.0,0.20812071]
[1763121055251,0.2080938,96111.0,96107.0,0.20809948]
[1763121055466,0.20809716,96109.0,96106.0,0.20810283]
[1763121055673,0.20809716,96109.0,96106.0,0.20810355]
[1763121055877,0.20809716,96109.0,96106.0,0.20810345]
[1763121056082,0.2081065,96105.0,96102.0,0.20811205]
[1763121056426,0.20809272,96111.0,96106.0,0.2081032]
[1763121056427,0.20809698,96110.0,96106.0,0.2081032]
[1763121056786,0.00013653,96113.0,96112.0,0.20809056]
[1763121057001,0.00013653,96113.0,96104.0,0.20810788]
[1763121057403,0.00013653,96113.0,96101.0,0.20811372]
[1763121057626,0.20809927,96108.0,96105.0,0.20810536]
[1763121057831,0.20809568,96110.0,96107.0,0.2081013]
[1763121058053,0.20809568,96110.0,96105.0,0.20810368]
[1763121058271,0.00013653,96113.0,96105.0,0.20810571]
[1763121058480,0.00013653,96113.0,96112.0,0.20809056]
[1763121058700,0.00013653,96113.0,96102.0,0.09294592]
[1763121058941,0.20809056,96112.0,96108.0,0.20809724]
[1763121059356,0.20822586,96113.0,96108.0,0.20809724]
[1763121059357,0.00013653,96113.0,96108.0,0.20809724]
[1763121059563,0.00013653,96113.0,96106.0,0.20810182]
[1763121059564,0.20809502,96110.0,96106.0,0.20810182]
[1763121059781,0.20809063,96112.0,96104.0,0.20810705]
[1763121059782,0.20809087,96112.0,96107.0,0.20810054]
[1763121059998,0.00013653,96113.0,96102.0,0.09294592]
[1763121060258,0.00013653,96113.0,96111.0,0.20809059]
[1763121060478,0.00013653,96113.0,96102.0,0.09294592]
[1763121060708,0.00013653,96113.0,96112.0,0.20809056]
[1763121061516,0.00013653,96113.0,96102.0,0.09294592]
[1763121061792,0.00013653,96113.0,96105.0,0.20810418]
[1763121061998,0.00013653,96113.0,96112.0,0.20809056]
[1763121066321,0.00013653,96113.0,96112.0,0.5755093]
[1763121066560,6.32e-06,96113.0,96112.0,0.5755093]
[1763121066760,6.32e-06,96113.0,96112.0,0.5765093]
[1763121066921,6.32e-06,96113.0,96112.0,0.53309056]
[1763121067247,6.32e-06,96113.0,96112.0,0.53209056]
[1763121067587,6.32e-06,96113.0,96112.0,0.53409056]
[1763121068103,6.32e-06,96113.0,96112.0,0.53109056]
[1763121068438,6.32e-06,96113.0,96112.0,0.53409056]
[1763121068648,6.32e-06,96113.0,96112.0,0.53209056]
[1763121069125,6.32e-06,96113.0,96112.0,0.53409056]
[1763121069298,6.32e-06,96113.0,96112.0,0.53209056]
[1763121069728,6.32e-06,96113.0,96112.0,0.21009056]
[1763121070590,6.32e-06,96113.0,96112.0,0.53109056]
[1763121071215,6.32e-06,96113.0,96112.0,0.53309056]
[1763121071671,6.32e-06,96113.0,96112.0,0.53109056]
[1763121071900,6.32e-06,96113.0,96112.0,0.53309056]
[1763121072994,6.32e-06,96113.0,96112.0,0.53509056]
[1763121073564,6.32e-06,96113.0,96112.0,0.53309056]
[1763121073959,6.32e-06,96113.0,96112.0,0.53509056]
[1763121074343,6.32e-06,96113.0,96112.0,0.325]
[1763121074542,6.32e-06,96113.0,96112.0,0.21009056]
[1763121074795,6.32e-06,96113.0,96112.0,0.002]
[1763121075017,6.32e-06,96113.0,96112.0,0.004]
[1763121075018,0.26454471,96113.0,96112.0,0.004]
[1763121075684,0.26454471,96113.0,96112.0,0.002]
[1763121076116,0.17690118,96095.0,96090.0,0.21854339]
[1763121076338,0.20812253,96098.0,96092.0,0.20813269]
[1763121076584,0.20812713,96096.0,96091.0,0.20813421]
[1763121076796,0.20811776,96100.0,96094.0,0.2081283]
[1763121077007,0.20811776,96100.0,96093.0,0.20813033]
[1763121077008,0.04391,96111.0,96105.0,0.20810516]
[1763121077219,0.20809623,96110.0,96105.0,0.20810516]
[1763121077438,0.04391,96111.0,96090.0,0.37926119]
[1763121077662,0.04391,96111.0,96092.0,0.20813319]
[1763121077874,0.20813237,96093.0,96086.0,0.323]
[1763121078087,0.20813556,96092.0,96088.0,0.2081407]
[1763121078300,0.20812768,96095.0,96090.0,0.20813686]
[1763121078520,0.20813454,96092.0,96087.0,0.08544592]
[1763121078741,0.20813454,96092.0,96090.0,0.001]
[1763121078959,0.33340474,96110.0,96087.0,0.08544592]
[1763121079166,0.20814076,96089.0,96087.0,0.08544592]
[1763121079389,0.20813423,96092.0,96087.0,0.08544592]
[1763121079595,0.20813378,96093.0,96087.0,0.08544592]
[1763121079804,0.20813804,96091.0,96087.0,0.08544592]
[1763121080013,0.20813523,96092.0,96087.0,0.29358915]
[1763121080223,0.20813726,96091.0,96087.0,0.08644592]
[1763121080487,0.10036,96088.0,96087.0,0.001]
[1763121080694,0.10036,96088.0,96076.0,0.20816764]
[1763121080914,0.08727,96087.0,96070.0,4e-05]
[1763121081116,0.20817936,96071.0,96070.0,4e-05]
[1763121081575,0.26462936,96071.0,96070.0,4e-05]
[1763121081783,0.20822271,96051.0,96050.0,4e-05]
[1763121082021,0.26467271,96051.0,96050.0,4e-05]
[1763121082241,0.30809145,96051.0,96050.0,4e-05]
[1763121082460,0.70354432,96051.0,96050.0,0.00045572]
[1763121082676,0.20828777,96021.0,96020.0,0.00044]
[1763121082885,0.20826974,96030.0,96023.0,0.20828166]
[1763121083100,0.20826974,96030.0,96020.0,0.00057021]
[1763121083101,0.04391,96030.0,96025.0,0.20827786]
[1763121083332,0.20825041,96039.0,96030.0,0.2082676]
[1763121083547,0.20826289,96033.0,96026.0,0.20827545]
[1763121083756,0.20827444,96028.0,96020.0,0.00057021]
[1763121083969,0.04391,96021.0,96020.0,0.00057021]
[1763121084396,0.08727,96030.0,96020.0,0.00057021]
[1763121084619,0.04391,96029.0,96020.0,0.00057021]
[1763121084848,0.20827258,96028.0,96021.0,0.20828777]
[1763121085060,0.20827258,96028.0,96022.0,0.20828409]
[1763121085284,0.04391,96036.0,96024.0,0.09294592]
[1763121085500,0.04391,96036.0,96020.0,0.00157021]
[1763121085710,0.20826736,96031.0,96026.0,0.001]
[1763121085931,0.04391,96036.0,96026.0,0.001]
[1763121085932,0.04391,96036.0,96034.0,0.20825777]
[1763121086155,0.2521668,96036.0,96024.0,0.09294592]
[1763121086376,0.04391,96036.0,96020.0,0.00157021]
[1763121086599,0.20826187,96033.0,96027.0,0.20827359]
[1763121087049,0.04391,96036.0,96021.0,0.001]
[1763121087289,0.04391,96036.0,96025.0,0.20827909]
[1763121087508,0.08727,96035.0,96020.0,0.00057021]
[1763121087718,0.04391,96036.0,96026.0,0.09294592]
[1763121087971,0.04391,96036.0,96026.0,0.20827588]
[1763121087972,0.20825879,96035.0,96026.0,0.20827588]
[1763121088197,0.04391,96036.0,96029.0,0.20826861]
[1763121088412,0.04391,96036.0,96021.0,0.001]
[1763121088676,0.05645,96022.0,96020.0,0.00057021]
[1763121088902,0.20828689,96022.0,96020.0,0.00057021]
[1763121089384,0.05645,96021.0,96020.0,0.00057021]
[1763121090496,0.05645,96021.0,96020.0,0.00157021]
[1763121090915,0.05645,96021.0,96020.0,0.00057021]
[1763121091162,0.06680095,96021.0,96020.0,0.00157021]
[1763121091826,0.06780095,96021.0,96020.0,0.00057021]
[1763121092036,0.05745,96021.0,96020.0,0.00057021]
[1763121093287,0.05845,96021.0,96020.0,0.00057021]
[1763121093490,0.05745,96021.0,96020.0,0.00057021]
[1763121093694,0.05645,96021.0,96020.0,0.00057021]
[1763121093892,0.05845,96021.0,96020.0,0.00057021]
[1763121094521,0.002,96021.0,96020.0,0.00057021]
[1763121095087,0.002,96021.0,96020.0,0.09351613]
[1763121095088,0.001,96021.0,96020.0,0.09351613]
[1763121095446,0.002,96021.0,96020.0,0.09351613]
[1763121095688,0.002,96021.0,96020.0,0.41651613]
[1763121095892,0.08671,96055.0,96020.0,0.41651613]
[1763121095893,0.20822078,96052.0,96046.0,0.20823204]
[1763121096100,0.20822078,96052.0,96020.0,0.41651613]
[1763121096101,0.20821879,96053.0,96020.0,0.79577732]
[1763121096303,0.05542,96045.0,96039.0,0.20824805]
[1763121096506,0.05542,96045.0,96021.0,0.20828777]
[1763121096758,0.05542,96045.0,96043.0,0.2082395]
[1763121097097,0.05542,96045.0,96036.0,0.208254]
[1763121097275,0.2082499,96039.0,96033.0,0.20826047]
[1763121097508,0.08671,96050.0,96020.0,0.80619181]
[1763121097630,0.04294,96021.0,96020.0,0.00057021]
[1763121097835,0.09836,96021.0,96020.0,0.00057021]
[1763121099581,0.30664777,96021.0,96020.0,0.00057021]
[1763121101370,0.30764777,96021.0,96020.0,0.00057021]
[1763121101573,0.09936,96021.0,96020.0,0.00057021]
[1763121101971,0.04394,96021.0,96020.0,0.00057021]
[1763121102191,0.30764777,96021.0,96020.0,0.00057021]
[1763121102595,0.30864777,96021.0,96020.0,0.00057021]
[1763121102824,0.04494,96021.0,96020.0,0.00057021]
[1763121103021,0.10036,96021.0,96020.0,0.00057021]
[1763121103456,0.04494,96021.0,96020.0,0.00057021]
[1763121103857,0.09936,96021.0,96020.0,0.00057021]
[1763121104057,0.09836,96021.0,96020.0,0.00057021]
[1763121104284,0.09936,96021.0,96020.0,0.00057021]
[1763121104458,0.10036,96021.0,96020.0,0.00057021]
[1763121104725,0.3603396,96021.0,96020.0,0.00057021]
[1763121104862,0.20830946,96011.0,96010.0,0.0004]
[1763121105064,0.30666946,96011.0,96010.0,0.00053636]
[1763121106895,0.04294,96011.0,96010.0,0.00053636]
[1763121107096,0.04394,96011.0,96010.0,0.00057636]
[1763121108230,0.002,96011.0,96010.0,0.00057636]
[1763121108848,0.05742,96011.0,96010.0,0.00061636]
[1763121109060,0.001,96011.0,96010.0,0.00065636]
[1763121109510,0.45276208,96033.0,96010.0,0.01111194]
[1763121109724,0.2082818,96024.0,96015.0,0.20829876]
[1763121109964,0.04294,96041.0,96010.0,0.00081636]
[1763121109965,0.20830946,96011.0,96010.0,0.00081636]
[1763121110186,0.20830754,96012.0,96010.0,0.00085636]
[1763121110400,0.05542,96011.0,96010.0,0.00085636]
[1763121110611,0.05542,96011.0,96010.0,0.00089636]
[1763121110885,0.20830754,96012.0,96010.0,0.00093636]
[1763121111528,0.05542,96011.0,96010.0,0.00093636]
[1763121113907,0.05542,96011.0,96005.0,0.00489655]
[1763121113908,0.53132031,96006.0,96005.0,0.00489655]
[1763121114125,0.62789989,96006.0,96005.0,0.00503342]
[1763121114576,0.20833116,96001.0,96000.0,0.0004]
[1763121114800,0.28287818,96001.0,96000.0,0.0004]
[1763121115380,0.2828608,96001.0,96000.0,0.0004]
[1763121115783,0.2838608,96001.0,96000.0,0.0004]
[1763121115999,0.07552964,96001.0,96000.0,0.0004]
[1763121116164,0.07652964,96001.0,96000.0,0.0004]
[1763121116364,0.002,96001.0,96000.0,0.0004]
[1763121117632,0.001,96001.0,96000.0,0.0004]
[1763121117988,0.001,96001.0,96000.0,0.38681874]
[1763121118216,0.20825399,96037.0,96029.0,0.20826864]
[1763121118420,0.20825399,96037.0,96010.0,0.03041558]
[1763121118421,0.00013654,96037.0,96035.0,0.208256]
[1763121118806,0.00013654,96037.0,96020.0,0.55745399]
[1763121119018,0.20827581,96027.0,96014.0,0.30124685]
[1763121119215,0.20827618,96027.0,96022.0,0.20828457]
[1763121119412,0.20827544,96027.0,96014.0,0.1033072]
[1763121119640,0.20827881,96026.0,96014.0,0.1033072]
[1763121119841,0.08671,96036.0,96014.0,0.01036128]
[1763121119842,0.04294,96015.0,96014.0,0.01036128]
[1763121120112,0.20833116,96001.0,96000.0,0.0014]
[1763121120231,0.08671,96014.0,96000.0,0.0014]
[1763121120436,0.20832902,96002.0,96000.0,0.0014]
[1763121120691,0.20831519,96009.0,96000.0,0.0004]
[1763121120899,0.20830295,96014.0,96001.0,0.09294592]
[1763121121070,0.20829854,96017.0,96010.0,0.20831108]
[1763121121293,0.20831459,96009.0,96004.0,0.20832395]
[1763121121475,0.00013647,96017.0,96005.0,0.09294592]
[1763121121636,0.20830446,96014.0,96005.0,0.09294592]
[1763121121836,0.00013647,96017.0,96005.0,0.09294592]
[1763121122042,0.00013647,96017.0,96013.0,0.20830449]
[1763121122243,0.00013647,96017.0,96005.0,0.09294592]
[1763121122449,0.00013647,96017.0,96010.0,0.20831107]
[1763121122672,0.00013647,96017.0,96011.0,0.20830872]
[1763121123075,0.00013647,96017.0,96011.0,0.20830879]
[1763121123278,0.00013647,96017.0,96013.0,0.20830486]
[1763121123481,0.00013647,96017.0,96011.0,0.20830781]
[1763121123912,0.20831535,96009.0,96005.0,0.09294592]
[1763121124124,0.00013647,96017.0,96001.0,0.01036128]
[1763121124348,0.00013647,96017.0,96004.0,0.20832296]
[1763121124538,0.20832091,96006.0,96001.0,0.01036128]
[1763121124743,0.26265899,96002.0,96000.0,0.0004]
[1763121125074,0.05433,96001.0,96000.0,0.0004]
[1763121125718,0.18420355,96001.0,96000.0,0.0004]
[1763121125913,0.09544,96001.0,96000.0,0.0004]
[1763121126487,0.20832917,96004.0,96000.0,0.0004]
[1763121126714,0.2083293,96002.0,96000.0,0.0004]
[1763121126919,0.04111,96001.0,96000.0,0.0004]
[1763121127123,0.09544,96001.0,96000.0,0.0004]
[1763121128523,0.04341874,96015.0,96000.0,0.0004]